bitfinex/quotes_ETHUSD_20260119
["timestamp","ask_amount","ask_price","bid_price","bid_amount"]
[1768802888090,1.34807029,3202.3,3201.8,0.002]
[1768802890589,1.34407029,3202.2,3201.8,0.002]
[1768802891916,1.34407029,3202.2,3201.8,1.34137189]
[1768802892123,1.34407029,3202.2,3201.8,0.002]
[1768802897533,1.34407029,3202.2,3202.1,0.002]
[1768802903841,1.25379131,3202.1,3201.8,0.002]
[1768802904016,0.44667436,3202.2,3201.1,3.12583692]
[1768802904017,1.25379131,3201.9,3201.1,3.12583692]
[1768802904345,1.25379131,3201.6,3201.1,0.002]
[1768802909154,1.25379131,3201.6,3201.5,0.002]
[1768802909352,1.61395433,3201.6,3201.5,0.002]
[1768802910548,1.61395433,3201.6,3201.1,0.002]
[1768802910753,1.25379131,3201.5,3201.1,0.002]
[1768802914467,1.25379131,3201.4,3200.9,0.002]
[1768802915239,1.25379131,3201.4,3200.9,1.2568526]
[1768802918550,1.25379131,3201.4,3200.9,4.38096757]
[1768802918745,1.25379131,3201.4,3200.9,1.2568526]
[1768802918947,1.25379131,3201.4,3200.9,4.38096235]
[1768802919157,1.25379131,3201.4,3200.9,1.2568526]
[1768802919943,1.25379131,3201.4,3200.9,4.38094995]
[1768802920673,0.001,3201.1,3200.9,1.2568526]
[1768802921073,0.001,3201.1,3200.9,4.38095608]
[1768802921445,0.001,3201.1,3200.9,1.2568526]
[1768802921650,1.15727412,3201.6,3201.0,1.19272356]
[1768802921873,3.12352418,3201.6,3201.0,1.19272356]
[1768802922062,1.15727412,3201.5,3201.0,1.19272356]
[1768802922578,1.15727412,3201.5,3200.9,0.002]
[1768802922750,1.15727412,3201.5,3200.9,1.19472356]
[1768802923953,1.15727412,3201.5,3200.9,4.31882237]
[1768802924463,1.15727412,3201.5,3201.0,1.19272356]
[1768802926247,1.15727412,3201.5,3200.9,1.19472356]
[1768802926472,1.15727412,3201.5,3200.9,4.31881198]
[1768802927357,1.15727412,3201.5,3200.9,1.19472356]
[1768802928256,1.15727412,3201.5,3200.9,4.31884237]
[1768802928455,1.15727412,3201.5,3200.9,4.3188247]
[1768802928704,1.15327412,3201.5,3200.9,4.3188247]
[1768802931385,1.15327412,3201.5,3200.9,1.19472356]
[1768802931787,1.15727412,3201.4,3200.9,1.19472356]
[1768802933193,0.001,3201.2,3200.9,1.19472356]
[1768802939603,1.14283573,3201.2,3200.9,0.002]
[1768802939901,0.001,3201.2,3200.9,0.002]
[1768802940599,0.001,3201.2,3200.9,1.19774281]
[1768802941607,1.65683573,3201.8,3201.0,1.19574281]
[1768802941809,4.78013949,3201.8,3201.0,1.19574281]
[1768802942019,1.14183573,3201.7,3201.0,1.19574281]
[1768802942327,1.14183573,3201.5,3200.9,0.002]
[1768802942816,1.13783573,3201.5,3200.9,0.002]
[1768802945415,1.13783573,3201.5,3201.2,0.002]
[1768802960848,1.14183573,3201.4,3201.2,0.002]
[1768802971360,1.05979955,3201.3,3201.2,0.002]
[1768802975593,1.05979955,3201.2,3200.7,0.002]
[1768802975761,1.05979955,3200.9,3200.5,0.002]
[1768802975966,1.05979955,3200.9,3200.2,0.002]
[1768802976164,5.20289412,3201.0,3200.2,0.002]
[1768802976165,1.05979955,3200.7,3200.2,0.002]
[1768802977398,5.07573095,3200.8,3200.2,0.002]
[1768802977399,3.12441417,3200.6,3200.2,0.002]
[1768802977581,1.05979955,3200.5,3200.2,0.002]
[1768802978569,1.05979955,3200.5,3199.9,0.002]
[1768802978869,1.09894148,3200.4,3199.9,0.002]
[1768802979897,1.09894148,3200.3,3199.9,0.002]
[1768802980409,1.09894148,3200.3,3200.2,0.002]
[1768802982692,1.09894148,3200.3,3199.9,0.002]
[1768802982693,4.22364853,3200.3,3199.9,0.002]
[1768802983124,1.09894148,3200.2,3199.9,0.002]
[1768802984144,1.09894148,3200.1,3199.9,0.002]
[1768802984298,1.09894148,3200.1,3198.3,6.57777286]
[1768802984299,1.09894148,3200.0,3199.3,1.08475667]
[1768802984500,1.09894148,3199.4,3198.7,6.25254008]
[1768802984728,1.09894148,3199.4,3198.8,1.08475667]
[1768802985734,1.09894148,3199.4,3198.6,1.08675667]
[1768802985935,1.09894148,3199.2,3198.6,0.002]
[1768802986227,1.09894148,3199.0,3198.6,0.002]
[1768802986402,1.09894148,3198.9,3198.6,0.002]
[1768802986829,1.09894148,3198.9,3198.3,1.08475667]
[1768802987335,1.09894148,3198.9,3198.0,1.08475667]
[1768802988130,1.09894148,3198.9,3198.0,3.1269353]
[1768802988302,1.09894148,3198.9,3197.9,3.12705212]
[1768802988303,1.09894148,3198.7,3197.9,3.12705212]
[1768802988499,1.09894148,3198.7,3197.8,1.59975667]
[1768802988500,1.09894148,3198.5,3197.8,3.12713737]
[1768802989240,1.09894148,3198.2,3197.3,3.127564]
[1768802989437,1.09894148,3198.2,3197.5,3.12737508]
[1768802989733,1.09894148,3198.2,3197.6,3.12732498]
[1768802990039,1.09894148,3198.1,3197.6,3.12732498]
[1768802990337,0.516,3198.3,3197.4,3.12753004]
[1768802990338,1.09894148,3198.2,3197.7,4.21200436]
[1768802990628,0.66999598,3198.8,3197.9,1.08475667]
[1768802990802,1.09894148,3198.8,3197.9,1.08475667]
[1768802991204,1.09894148,3198.7,3197.9,1.08475667]
[1768802992202,1.02409766,3198.7,3198.1,1.08475667]
[1768802992514,0.16149415,3199.1,3198.1,1.08475667]
[1768802992515,1.77643563,3199.1,3198.1,1.08475667]
[1768802992719,1.20678443,3199.0,3198.1,1.08475667]
[1768802994324,0.17764356,3199.0,3198.3,1.10944194]
[1768802994953,1.20678443,3199.0,3198.3,1.10944194]
[1768802996240,1.20678443,3199.0,3198.3,3.126621]
[1768802996421,1.20678443,3199.0,3198.4,1.10944194]
[1768802996830,1.02914087,3198.9,3198.4,1.10944194]
[1768802998373,0.16149415,3199.1,3198.4,3.12656067]
[1768802998547,4.15502484,3199.1,3198.5,1.10944194]
[1768802998739,1.02914087,3199.0,3198.5,1.10944194]
[1768803001772,1.02914087,3198.9,3198.3,1.10944194]
[1768803001976,3.12597864,3199.0,3198.0,0.002]
[1768803001977,1.02914087,3198.6,3198.0,0.002]
[1768803002660,1.02914087,3198.6,3198.0,1.11144194]
[1768803005205,1.02914087,3198.6,3198.1,3.12685657]
[1768803005514,1.02914087,3198.6,3198.0,4.23835549]
[1768803006892,1.54514087,3198.8,3198.1,1.10944194]
[1768803007092,1.02914087,3199.1,3198.2,1.10944194]
[1768803007308,1.02914087,3199.1,3198.4,1.10944194]
[1768803008582,1.02914087,3199.1,3198.5,1.10944194]
[1768803008981,1.02914087,3199.4,3198.5,1.10944194]
[1768803009222,1.02914087,3199.4,3198.7,1.10944194]
[1768803009223,4.15472857,3199.4,3198.7,1.10944194]
[1768803009454,1.02914087,3199.4,3198.8,1.10944194]
[1768803009719,1.02914087,3199.4,3198.0,0.002]
[1768803009720,1.02914087,3198.8,3198.3,3.12665805]
[1768803010133,1.02914087,3198.8,3198.3,4.23609999]
[1768803010433,1.02914087,3198.8,3198.4,3.12654972]
[1768803010858,1.02914087,3198.8,3198.3,1.10944194]
[1768803010995,1.02914087,3198.5,3198.0,0.002]
[1768803011195,1.02914087,3198.4,3198.0,0.002]
[1768803014298,1.02914087,3198.4,3198.0,1.11144194]
[1768803016339,1.02914087,3198.4,3198.3,0.002]
[1768803016744,1.02914087,3199.1,3198.3,1.11144194]
[1768803016939,0.5716035,3199.1,3198.3,1.11144194]
[1768803017113,1.02914087,3199.2,3198.3,1.11144194]
[1768803018308,1.02914087,3199.2,3198.5,1.10944194]
[1768803020163,0.516,3199.6,3198.5,1.10944194]
[1768803020454,1.02914087,3199.5,3198.9,1.10944194]
[1768803022642,1.02914087,3199.5,3198.9,4.2355041]
[1768803022841,1.0436631,3199.7,3199.0,1.06078707]
[1768803023152,1.0436631,3199.6,3199.0,1.06078707]
[1768803023954,1.0436631,3199.6,3198.8,1.06078707]
[1768803024118,1.0436631,3199.5,3198.8,1.06078707]
[1768803025843,1.0436631,3199.5,3198.8,4.18694979]
[1768803026144,1.0436631,3199.5,3198.9,1.06078707]
[1768803026823,4.169155,3199.5,3198.9,1.06078707]
[1768803027028,1.0436631,3199.4,3198.9,1.06078707]
[1768803027225,4.95010362,3199.6,3198.9,1.06078707]
[1768803027439,1.0436631,3199.4,3198.6,5.43937395]
[1768803027641,1.0436631,3199.4,3198.7,4.18704983]
[1768803027848,1.0436631,3199.4,3198.8,1.06078707]
[1768803028056,0.001,3199.2,3198.8,1.06078707]
[1768803031857,0.001,3199.2,3198.8,4.18692888]
[1768803032871,0.001,3199.2,3198.9,1.06078707]
[1768803034668,0.001,3199.2,3198.9,4.18686061]
[1768803034861,0.001,3199.2,3199.0,1.06078707]
[1768803036051,0.001,3199.2,3199.0,4.18673642]
[1768803037173,0.001,3199.2,3199.0,1.06078707]
[1768803037379,0.001,3199.2,3199.0,4.18676286]
[1768803038181,1.0436631,3199.7,3199.2,1.06078707]
[1768803038341,1.0436631,3200.3,3199.2,1.06078707]
[1768803039752,1.0436631,3200.3,3199.1,14.0711768]
[1768803039753,1.0436631,3200.3,3199.4,4.69353935]
[1768803040078,1.0436631,3200.3,3199.6,0.99757691]
[1768803040254,1.0436631,3200.3,3199.7,6.25058598]
[1768803040453,1.0436631,3200.3,3199.8,0.99757691]
[1768803040878,1.00856912,3200.5,3199.8,0.99757691]
[1768803042550,1.00856912,3200.5,3200.0,0.99757691]
[1768803044563,1.00856912,3200.5,3200.0,1.40985289]
[1768803044885,1.00856912,3200.7,3200.1,0.99757691]
[1768803047970,3.12431966,3200.7,3200.1,0.99757691]
[1768803048289,1.00856912,3200.6,3200.1,0.99757691]
[1768803049986,1.00856912,3200.6,3200.0,0.99757691]
[1768803050500,1.00856912,3200.5,3200.0,0.99757691]
[1768803051071,0.001,3200.4,3200.0,0.99757691]
[1768803051290,1.00956912,3200.4,3199.9,0.516]
[1768803051595,1.00956912,3200.4,3199.9,1.51357691]
[1768803053665,1.00956912,3200.4,3199.9,0.516]
[1768803053871,1.00956912,3200.4,3199.8,0.515]
[1768803054072,1.00956912,3200.4,3199.8,1.49701431]
[1768803055305,1.00956912,3200.4,3199.8,0.98201431]
[1768803055503,1.00956912,3200.4,3199.8,4.10720407]
[1768803056776,0.001,3200.4,3200.0,0.98201431]
[1768803059302,0.001,3200.4,3200.0,3.12499878]
[1768803059471,0.001,3200.4,3200.1,0.98201431]
[1768803062029,0.001,3200.4,3200.2,0.98201431]
[1768803062808,0.001,3200.2,3199.9,0.515]
[1768803063424,1.04931089,3200.2,3199.9,0.515]
[1768803063624,1.04931089,3200.2,3199.8,0.98201431]
[1768803063829,0.001,3200.2,3199.9,0.98201431]
[1768803066602,1.04831089,3200.1,3199.7,3.12525716]
[1768803066802,1.04831089,3200.1,3199.7,3.94696617]
[1768803067006,1.04831089,3200.1,3199.7,4.92898048]
[1768803067338,0.001,3200.2,3199.7,4.92898048]
[1768803067818,0.001,3200.2,3199.8,0.98201431]
[1768803069106,1.04931089,3200.2,3199.8,0.98201431]
[1768803070537,1.04931089,3200.2,3199.8,4.10720638]
[1768803071173,1.04931089,3200.2,3199.5,0.46935394]
[1768803071174,1.04931089,3200.2,3198.0,1.56919788]
[1768803071465,1.04831089,3198.4,3197.7,0.98201431]
[1768803071672,10.128,3199.7,3197.7,0.66928644]
[1768803071673,1.04831089,3198.2,3197.7,0.66928644]
[1768803071850,1.04831089,3198.2,3197.6,0.002]
[1768803072173,1.04831089,3198.2,3197.5,0.98201431]
[1768803072470,0.08373931,3197.5,3197.1,0.98201431]
[1768803072668,0.08373931,3197.5,3197.2,0.98201431]
[1768803072977,0.08373931,3197.5,3197.3,0.98201431]
[1768803073949,0.08373931,3197.5,3197.2,0.41098417]
[1768803073950,0.00667709,3197.5,3197.4,0.98201431]
[1768803075342,0.00667709,3197.5,3197.3,0.002]
[1768803076427,0.00667709,3197.5,3197.3,0.98401431]
[1768803078249,0.00667709,3197.5,3197.3,0.002]
[1768803079068,1.05498798,3197.5,3197.3,0.002]
[1768803079757,1.04831089,3197.4,3196.7,0.98401431]
[1768803079941,1.04831089,3197.4,3196.9,3.12802766]
[1768803080140,1.04831089,3197.4,3196.7,0.518]
[1768803080141,1.04831089,3197.4,3196.8,4.11007944]
[1768803080766,1.04831089,3197.4,3196.9,3.12801892]
[1768803080976,1.04831089,3197.4,3196.9,4.11003898]
[1768803081472,1.04831089,3197.4,3196.9,0.98201431]
[1768803082245,1.04831089,3197.4,3196.8,3.1281218]
[1768803082445,1.05498798,3197.5,3196.8,4.11013611]
[1768803083141,0.00667709,3197.5,3197.0,1.5175633]
[1768803083351,0.00667709,3197.5,3197.2,1.5175633]
[1768803083562,9.8356216,3198.1,3197.4,1.5175633]
[1768803083756,1.49916582,3198.0,3197.4,1.5175633]
[1768803085411,1.49916582,3198.0,3197.2,3.12770167]
[1768803085412,1.49916582,3197.8,3197.1,2.0335633]
[1768803085550,1.49916582,3197.7,3197.1,2.0335633]
[1768803086283,6.19270517,3197.9,3197.2,1.5175633]
[1768803086578,1.49916582,3198.1,3197.2,1.5175633]
[1768803086867,1.49916582,3198.1,3197.2,1.5195633]
[1768803087374,0.001,3197.7,3197.2,1.5195633]
[1768803087677,0.001,3197.7,3197.4,1.5175633]
[1768803087863,0.001,3197.7,3197.5,0.516]
[1768803088261,0.001,3197.7,3197.5,2.0335633]
[1768803088474,0.001,3197.7,3197.6,1.5175633]
[1768803089176,3.12666935,3198.3,3197.5,1.03212022]
[1768803089177,1.49916582,3198.3,3197.5,1.03212022]
[1768803089479,1.49916582,3198.5,3197.6,1.5175633]
[1768803089681,4.62544562,3198.7,3197.8,1.5175633]
[1768803089861,1.49916582,3198.6,3198.0,1.5175633]
[1768803091164,3.12620825,3198.8,3198.0,1.5175633]
[1768803091883,3.12620825,3198.8,3198.0,3.12695413]
[1768803092084,3.12620825,3198.8,3198.1,1.5175633]
[1768803092650,3.12620825,3198.8,3197.9,2.0335633]
[1768803092651,1.49916582,3198.5,3197.9,2.0335633]
[1768803093087,1.49916582,3198.5,3198.0,1.5175633]
[1768803094058,4.62563672,3198.5,3198.0,1.5175633]
[1768803094272,1.49916582,3198.5,3198.0,1.5175633]
[1768803094985,1.49916582,3198.5,3198.1,0.516]
[1768803094986,1.49916582,3198.4,3198.1,0.516]
[1768803095194,1.49916582,3198.4,3197.9,0.516]
[1768803095195,1.49916582,3198.3,3197.9,0.516]
[1768803095361,1.49916582,3198.3,3197.2,0.002]
[1768803095362,1.49916582,3198.3,3197.6,0.516]
[1768803096289,3.1267588,3198.2,3197.6,0.516]
[1768803096589,1.49916582,3198.1,3197.6,0.516]
[1768803098374,3.12690457,3198.1,3197.6,0.516]
[1768803098576,1.49916582,3198.0,3197.6,0.516]
[1768803099098,1.50016582,3198.0,3197.6,0.516]
[1768803099463,1.50016582,3198.0,3197.3,3.12760118]
[1768803099464,2.84973139,3197.9,3197.4,0.516]
[1768803100505,2.84973139,3197.8,3197.4,0.516]
[1768803101177,2.84973139,3197.8,3197.2,0.002]
[1768803101567,2.84973139,3197.7,3197.2,0.002]
[1768803106613,4.69673236,3197.8,3197.2,2.8765514]
[1768803107255,2.84973139,3197.9,3197.2,2.8765514]
[1768803107437,2.84973139,3197.9,3197.2,3.57603025]
[1768803107756,2.85073139,3198.0,3197.4,2.8745514]
[1768803109954,2.85073139,3198.0,3196.8,2.8745514]
[1768803109955,2.84973139,3197.9,3196.8,2.8745514]
[1768803110150,6.2549675,3198.0,3196.8,6.00261737]
[1768803110151,2.84973139,3197.4,3196.8,6.00261737]
[1768803110851,2.84973139,3197.4,3197.1,0.002]
[1768803111007,2.84973139,3197.4,3196.8,2.8745514]
[1768803111950,2.84973139,3197.3,3196.8,2.8745514]
[1768803113018,3.44745297,3197.3,3196.8,2.8745514]
[1768803114622,3.12773676,3197.2,3196.8,2.8745514]
[1768803114944,6.57513156,3197.3,3196.8,2.8745514]
[1768803115841,9.70281015,3197.3,3196.8,2.8745514]
[1768803116342,3.65913478,3196.9,3196.3,3.12853878]
[1768803116546,4.69673236,3196.8,3196.4,3.78782286]
[1768803116843,4.69673236,3196.9,3196.4,3.78782286]
[1768803117211,4.69673236,3196.9,3196.4,4.30382286]
[1768803117411,3.65913478,3196.5,3196.0,0.518]
[1768803118547,3.65913478,3196.5,3196.0,2.32951389]
[1768803119542,3.65913478,3196.6,3196.0,0.518]
[1768803119845,4.02504826,3196.6,3196.0,0.518]
[1768803120222,4.02504826,3196.6,3196.0,0.002]
[1768803120941,3.65913478,3196.5,3196.0,0.002]
[1768803122132,3.65913478,3196.5,3196.0,2.28046865]
[1768803122638,3.49433304,3196.6,3196.0,2.28046865]
[1768803122639,0.36591348,3196.6,3196.0,2.28046865]
[1768803122855,3.65913478,3197.6,3196.6,2.30215871]
[1768803123031,3.66013478,3197.1,3196.6,2.30215871]
[1768803123433,0.001,3197.1,3196.6,2.30215871]
[1768803123660,0.001,3197.1,3196.8,2.30215871]
[1768803124576,0.001,3197.1,3196.8,2.81815871]
[1768803125156,0.001,3197.1,3196.8,0.516]
[1768803125969,3.66013478,3197.1,3196.4,2.37160874]
[1768803126189,3.66013478,3197.1,3196.0,0.5947463]
[1768803126190,3.65913478,3196.6,3196.0,0.002]
[1768803126479,3.57539198,3196.6,3196.0,0.002]
[1768803126973,3.66013478,3197.1,3196.3,2.47797179]
[1768803127262,3.66013478,3197.1,3196.1,6.12274989]
[1768803127760,3.66013478,3197.1,3196.2,3.12871233]
[1768803128067,3.65913478,3196.7,3196.0,0.002]
[1768803128631,3.65913478,3196.7,3196.1,2.50033223]
[1768803128832,0.001,3197.1,3196.0,0.002]
[1768803128833,3.66013478,3197.1,3196.3,2.52243584]
[1768803129156,3.65913478,3196.9,3196.3,2.52243584]
[1768803129586,3.65913478,3196.9,3196.4,0.516]
[1768803129795,6.78799933,3197.1,3196.4,3.06028556]
[1768803130286,3.65913478,3197.0,3196.4,3.06028556]
[1768803131083,6.7870966,3197.0,3196.4,3.06028556]
[1768803131450,3.65913478,3197.0,3196.4,3.06028556]
[1768803131870,3.12801201,3197.0,3196.4,3.06028556]
[1768803132096,6.7879974,3197.1,3196.4,3.06028556]
[1768803132355,3.65913478,3197.0,3196.4,3.06028556]
[1768803133581,6.78710065,3197.0,3196.4,3.06028556]
[1768803133959,7.77869478,3197.0,3196.4,3.06028556]
[1768803134165,3.65913478,3196.9,3196.4,3.06028556]
[1768803134363,3.65913478,3196.9,3196.4,0.516]
[1768803135083,3.66013478,3196.8,3196.4,0.516]
[1768803135652,3.66013478,3196.8,3196.2,0.516]
[1768803135853,3.66013478,3196.8,3196.2,1.14555764]
[1768803136056,3.66013478,3196.8,3196.2,3.81447011]
[1768803136958,3.12913908,3196.8,3196.2,3.81447011]
[1768803137203,6.78827386,3196.8,3196.3,2.68881354]
[1768803137357,3.66013478,3196.8,3196.3,2.68881354]
[1768803138490,6.78828714,3196.8,3196.3,2.68881354]
[1768803139187,3.65913478,3196.7,3196.2,0.516]
[1768803139392,3.65913478,3196.6,3196.1,0.516]
[1768803139969,3.65913478,3196.6,3196.1,3.26315572]
[1768803141695,3.65913478,3196.6,3196.2,0.516]
[1768803142087,3.66013478,3196.8,3196.2,3.3009422]
[1768803142663,4.35412564,3196.7,3196.2,0.516]
[1768803143863,4.35412564,3196.6,3196.2,0.516]
[1768803144479,4.35412564,3196.6,3196.0,0.002]
[1768803145790,4.35412564,3196.4,3196.0,0.002]
[1768803146703,4.35412564,3196.4,3196.3,0.002]
[1768803148181,7.48264522,3196.4,3196.3,0.002]
[1768803148381,4.35412564,3196.4,3196.3,0.002]
[1768803148583,5.41521845,3196.4,3196.3,0.002]
[1768803149409,5.41521845,3196.4,3195.5,4.69707606]
[1768803149410,4.35412564,3196.3,3195.5,4.69707606]
[1768803150407,6.773072,3196.4,3195.3,3.12953683]
[1768803150408,4.35412564,3196.1,3195.3,4.69707606]
[1768803150989,4.35412564,3196.1,3195.2,0.516]
[1768803151319,4.35412564,3196.1,3195.0,3.12988493]
[1768803151320,4.35412564,3196.1,3195.0,7.8269465]
[1768803151489,4.35412564,3196.1,3195.1,4.69707606]
[1768803151813,4.87012564,3196.1,3195.1,5.53137071]
[1768803152012,4.35412564,3196.1,3195.1,5.53137071]
[1768803152317,4.35412564,3196.1,3195.2,3.12969454]
[1768803152318,4.35412564,3195.9,3195.2,3.12969454]
[1768803153593,4.35412564,3195.9,3195.2,7.8267706]
[1768803154431,4.35412564,3196.3,3195.4,4.69707606]
[1768803154710,4.35412564,3196.3,3195.6,4.69707606]
[1768803154915,4.35412564,3196.2,3195.6,4.69707606]
[1768803155116,4.35412564,3196.2,3195.5,0.516]
[1768803155516,4.35412564,3196.2,3195.4,4.69707606]
[1768803156519,4.35412564,3196.1,3195.5,4.69707606]
[1768803158123,4.35412564,3196.1,3195.5,5.79268916]
[1768803158297,4.35412564,3196.4,3195.7,4.69907606]
[1768803158624,3.87657551,3196.7,3195.8,4.69707606]
[1768803158625,4.35412564,3196.6,3195.8,4.69707606]
[1768803159027,4.86121956,3196.4,3195.8,4.69707606]
[1768803160704,4.86121956,3196.4,3195.9,4.45547051]
[1768803160911,4.86121956,3196.7,3195.9,4.45547051]
[1768803162518,4.86121956,3196.7,3196.5,0.69753558]
[1768803162821,3.12826817,3196.7,3196.5,0.69753558]
[1768803162991,4.86121956,3196.6,3196.5,0.69753558]
[1768803163631,3.12824736,3196.7,3196.5,0.69753558]
[1768803163837,4.86121956,3196.7,3196.5,0.69753558]
[1768803164202,0.001,3196.8,3196.5,5.15300609]
[1768803164525,0.001,3196.8,3196.6,4.97077112]
[1768803166446,0.001,3196.8,3196.7,4.45547051]
[1768803166943,0.001,3196.8,3196.7,7.58369649]
[1768803167232,0.001,3197.1,3196.8,4.45547051]
[1768803167801,4.86121956,3197.6,3196.9,4.45547051]
[1768803168003,4.86121956,3197.6,3196.9,4.97147051]
[1768803169530,3.12718404,3197.8,3197.1,4.45547051]
[1768803169830,4.86121956,3197.7,3197.1,4.45547051]
[1768803170898,4.86121956,3197.7,3196.5,0.69753558]
[1768803171104,5.66005877,3197.6,3196.6,4.45547051]
[1768803171307,5.66005877,3197.6,3196.7,7.58366796]
[1768803171308,4.86121956,3197.6,3196.7,7.58366796]
[1768803171734,4.86121956,3197.5,3196.8,3.12812647]
[1768803172414,4.86121956,3197.5,3196.8,7.58359698]
[1768803172821,4.86121956,3197.5,3196.9,5.1254814]
[1768803173614,4.86121956,3197.5,3197.0,3.12793243]
[1768803174016,4.86121956,3197.5,3197.1,5.1254814]
[1768803174217,4.86121956,3197.5,3197.0,3.12793243]
[1768803174845,4.86121956,3197.5,3197.0,8.25341383]
[1768803175218,0.001,3198.0,3197.1,5.6414814]
[1768803175538,0.001,3198.0,3197.0,10.52193468]
[1768803175539,4.72187034,3198.0,3197.2,5.6414814]
[1768803175838,4.72187034,3198.0,3197.5,0.10299177]
[1768803176605,4.72187034,3198.0,3197.5,5.22847317]
[1768803177054,4.72187034,3198.0,3197.5,0.10299177]
[1768803177252,5.50673413,3198.0,3197.5,0.10299177]
[1768803178530,5.50673413,3198.0,3197.5,3.23042006]
[1768803179624,5.50673413,3198.0,3197.5,0.10299177]
[1768803179828,5.50673413,3198.0,3197.5,3.23043062]
[1768803180341,0.78586379,3198.0,3197.6,5.1254814]
[1768803180560,0.001,3198.0,3197.6,5.1254814]
[1768803180755,4.72187034,3198.0,3197.5,0.10299177]
[1768803181110,4.72187034,3198.0,3197.5,3.23042984]
[1768803181312,4.72187034,3198.0,3197.5,8.35591124]
[1768803181508,5.19405737,3198.0,3197.5,0.10299177]
[1768803181723,4.72087034,3197.9,3197.0,3.12792575]
[1768803182010,4.72087034,3197.9,3197.1,5.1254814]
[1768803182434,0.001,3197.7,3197.1,5.1254814]
[1768803182634,4.72187034,3197.7,3197.1,5.1254814]
[1768803184348,4.72187034,3197.7,3197.2,3.12773676]
[1768803184651,4.72187034,3197.7,3197.3,5.1254814]
[1768803184830,0.001,3197.7,3197.3,5.1254814]
[1768803185412,0.001,3197.7,3197.3,5.6414814]
[1768803185649,0.001,3197.7,3197.5,5.1254814]
[1768803185961,0.001,3198.0,3197.5,5.1254814]
[1768803186255,0.001,3198.0,3197.6,3.1273455]
[1768803186464,0.001,3198.0,3197.7,5.1254814]
[1768803187821,0.001,3198.0,3197.7,5.6414814]
[1768803188155,4.72087034,3198.5,3197.8,5.1254814]
[1768803188733,4.72087034,3198.5,3197.9,5.1254814]
[1768803191525,7.84734581,3198.5,3197.9,5.1254814]
[1768803192466,4.72087034,3198.5,3197.9,5.1254814]
[1768803193163,4.72087034,3198.4,3197.9,5.1254814]
[1768803193772,4.72087034,3198.6,3197.9,5.1254814]
[1768803193978,5.86981162,3198.6,3197.9,5.1254814]
[1768803194365,0.001,3198.2,3197.9,5.1254814]
[1768803195542,0.001,3198.2,3197.9,8.25252618]
[1768803196171,0.001,3198.2,3197.9,5.1254814]
[1768803196339,0.001,3198.2,3198.0,5.1254814]
[1768803198156,0.001,3198.2,3198.0,8.25241837]
[1768803198481,0.001,3198.2,3198.1,5.1254814]
[1768803201071,0.001,3198.2,3197.9,8.25250374]
[1768803205309,0.001,3198.2,3198.0,5.38947887]
[1768803207309,4.99866966,3197.9,3197.5,0.002]
[1768803207514,5.81123206,3197.9,3197.5,0.002]
[1768803207709,4.99866966,3197.9,3197.5,0.002]
[1768803208006,4.99866966,3198.1,3197.5,5.39147887]
[1768803208212,0.001,3198.2,3197.5,5.39147887]
[1768803208805,0.001,3198.2,3197.6,0.516]
[1768803208806,4.99866966,3198.1,3197.6,0.516]
[1768803209382,4.99866966,3198.1,3197.6,5.90547887]
[1768803210487,4.99866966,3198.1,3197.7,5.38947887]
[1768803210682,0.001,3198.2,3197.7,5.38947887]
[1768803210888,0.001,3198.2,3197.8,6.60549179]
[1768803211198,0.001,3198.2,3197.8,5.38947887]
[1768803211917,0.001,3198.2,3197.8,8.51662673]
[1768803212122,0.001,3198.2,3197.8,5.38947887]
[1768803212419,0.001,3198.2,3197.8,8.51661449]
[1768803212620,0.001,3198.2,3197.8,5.38947887]
[1768803213399,0.001,3198.2,3197.9,5.38947887]
[1768803214317,0.001,3198.2,3197.9,8.51652618]
[1768803214487,0.001,3198.2,3197.9,5.38947887]
[1768803214817,0.001,3198.2,3197.9,8.51648113]
[1768803215129,3.64228896,3198.7,3197.5,0.002]
[1768803215130,4.99866966,3198.6,3197.5,0.002]
[1768803215304,4.99866966,3198.0,3197.5,0.002]
[1768803215821,4.99866966,3197.8,3197.5,0.002]
[1768803215991,4.99866966,3197.8,3197.0,0.004]
[1768803216192,4.99866966,3197.6,3197.0,0.52]
[1768803218120,4.99866966,3197.6,3197.0,0.004]
[1768803218528,4.99866966,3197.6,3197.3,0.002]
[1768803218711,5.55626402,3197.5,3197.3,0.002]
[1768803221434,0.81257218,3197.7,3197.3,0.002]
[1768803221733,5.55626402,3197.8,3197.4,0.516]
[1768803222632,5.55626402,3197.8,3197.4,3.91615511]
[1768803223022,5.55626402,3197.8,3197.4,0.516]
[1768803223806,5.55626402,3197.8,3197.4,3.8426204]
[1768803224001,5.55626402,3197.8,3197.4,6.97015872]
[1768803224204,5.55626402,3197.8,3197.4,3.8426204]
[1768803226335,5.55626402,3197.8,3197.3,0.002]
[1768803226514,5.55626402,3197.7,3197.5,0.516]
[1768803227336,5.55626402,3197.7,3197.3,0.002]
[1768803227636,5.55626402,3197.7,3197.4,0.516]
[1768803227936,5.55626402,3197.6,3197.3,0.002]
[1768803228319,5.55626402,3197.6,3197.4,0.516]
[1768803228513,5.55626402,3197.6,3197.3,0.002]
[1768803228715,5.55626402,3197.6,3197.4,0.516]
[1768803230224,8.68362443,3197.6,3197.4,0.516]
[1768803230445,5.55626402,3197.9,3197.5,0.516]
[1768803230604,6.25273556,3198.6,3197.5,0.516]
[1768803230605,5.55626402,3198.5,3197.5,3.63194088]
[1768803231237,5.55626402,3198.5,3197.5,0.516]
[1768803231610,5.55626402,3198.5,3197.3,3.08422563]
[1768803231809,5.55626402,3198.3,3197.6,0.516]
[1768803232411,3.1267588,3198.2,3197.6,0.516]
[1768803232763,5.21561534,3198.1,3197.6,0.516]
[1768803233607,5.21161534,3198.1,3197.6,0.516]
[1768803234538,5.21161534,3198.1,3197.6,3.47119291]
[1768803235421,5.21161534,3198.1,3197.6,4.13105397]
[1768803236544,5.21161534,3198.1,3197.6,7.25838677]
[1768803236840,5.21161534,3198.1,3197.6,4.13105397]
[1768803237344,5.21161534,3198.1,3197.6,7.25838991]
[1768803240621,3.12709243,3198.7,3197.7,2.76972238]
[1768803240622,5.21561534,3198.5,3197.7,2.76972238]
[1768803240958,5.21561534,3198.5,3197.8,2.74006379]
[1768803242156,0.0008,3198.7,3198.0,2.71074585]
[1768803242157,5.21641534,3198.7,3198.0,2.71074585]
[1768803242356,5.21561534,3198.6,3198.1,0.516]
[1768803242859,5.21561534,3198.6,3198.0,2.71074585]
[1768803243158,5.21561534,3198.6,3198.2,0.516]